Cogmind - Beta 13 @@@ ROGUE MODE // 2024.04.15 @ 23:20:48 Player: Michael Result: Self-destructed Performance ------------- Evolutions (1) 500 Regions Visited (2) 400 Robots Destroyed (16) 80 Value Destroyed (365) 365 Prototype IDs (0) 0 Alien Tech Used (0) 0 Bonus (0) 0 TOTAL SCORE: 1345 Bonus ------- None Cogmind --------- Core Integrity 311/400 Matter 254/300 Energy 100/100 System Corruption 0% Temperature Cool (0) Movement Core (1400) Ox27 Location -9/Materials Parts ------- > --- POWER (1) -------- (None) > --- PROPULSION (3) --- (None) > --- UTILITY (3) ------ Huge Storage Unit > --- WEAPON (2) ------- Hammer > --- INVENTORY (25) --- Wheel Wheel Wheel Wheel Wheel Wheel Wheel Wheel Compact Wheel Large Matter Pod (150) Structural Scanner Weapon Shielding Light Assault Rifle Light Assault Rifle Light Cannon Light Cannon Grenade Launcher Peak State ------------ > --- POWER ------------ Ion Engine > --- PROPULSION ------- Compact Wheel Compact Wheel > --- UTILITY ---------- Improved Heat Sink Huge Storage Unit > --- WEAPON ----------- Light Assault Rifle Hammer > --- INVENTORY -------- Ion Engine Ion Engine Light Ion Engine Wheel Wheel Compact Wheel Compact Wheel Compact Wheel Compact Wheel Compact Wheel Large Storage Unit Large Matter Pod Structural Scanner Power Shielding Weapon Shielding Light Assault Rifle Light Assault Rifle Light Assault Rifle Light Assault Rifle Grenade Launcher [Rating: 11] Favorites ----------- Power Ion Engine Engine Ion Engine Propulsion Compact Wheel Wheel Compact Wheel Utility Huge Storage Unit Device Improved Heat Sink Storage Huge Storage Unit Weapon Light Assault Rifle Energy Gun Small Laser Ballistic Gun Light Assault Rifle Ballistic Cannon Light Cannon Impact Weapon Hammer Build | -11 -10 -9 ------- Run | Yrd Mat Mat Slots Evolved 2 | . . 2 Power . | . . . Propulsion 1 | . . 1 Utility 1 | . . 1 Weapon . | . . . Parts Attached 24 | 6 11 7 Power 4 | 1 2 1 Engine 4 | 1 2 1 Core . | . . . Reactor . | . . . Propulsion 11 | 2 4 5 Treads . | . . . Leg . | . . . Wheel 11 | 2 4 5 Hover . | . . . Flight . | . . . Utility 3 | 1 2 . Device 1 | . 1 . Storage 2 | 1 1 . Processor . | . . . Hackware . | . . . Protection . | . . . Artifact . | . . . Weapon 6 | 2 3 1 Energy Gun 1 | 1 . . Energy Cannon . | . . . Ballistic Gun 3 | 1 2 . Ballistic Cannon 1 | . . 1 Launcher . | . . . Special Weapon . | . . . Impact Weapon 1 | . 1 . Slashing Weapon . | . . . Piercing Weapon . | . . . Special Melee Weapon . | . . . Unidentified Prototypes . | . . . Parts Lost 10 | . 4 6 Power 2 | . 1 1 Propulsion 5 | . 2 3 Utility 1 | . . 1 Weapon 2 | . 1 1 Highest Loss Streak 6 | . 2 6 To Critical Strikes . | . . . Average Slot Usage (%) 95 | . 96 80 Engine 13 | . 13 9 Wheel 27 | . 27 28 Device 12 | . 12 11 Storage 13 | . 14 11 Ballistic Gun 16 | . 17 . Impact Weapon 9 | . 9 11 Naked Turns . | . . . Heaviest Build 91 | 12 89 91 Greatest Support 48 | 26 32 48 Greatest Overweight (x) 5 | 3 5 2 Average Overweight (x) 1 | . 1 1 Largest Inventory Capacity 25 | 8 25 25 Average Capacity 23 | 7 23 25 Most Carried 25 | 4 25 24 Average Carried 15 | 2 15 17 Final Capacity 25 | 8 25 25 Final Carried 24 | 4 24 17 Class Distribution -------------------- 100% | Mutant Dominant Class ---------------- Mutant | -10/Materials Mutant | -9/Materials Resources | -11 -10 -9 ----------- Run | Yrd Mat Mat Matter Collected 624 | 196 418 10 Remotely . | . . . Salvage Created 384 | . 366 18 Parts 21 | . 20 1 Haulers Intercepted . | . . . Recyclers Shooed . | . . . Parts Field Recycled . | . . . Retrieved Matter . | . . . Parts Self-Destructed . | . . . Prevented . | . . . Kills | -11 -10 -9 ------- Run | Yrd Mat Mat Combat Hostiles Destroyed 16 | . 14 2 Melee 10 | . 10 . Guns 2 | . 2 . Cannons 1 | . . 1 Classes Destroyed 2 | . 2 . Swarmer 8 | . 6 2 Grunt 8 | . 8 . Best Kill Streak 3 | . 3 2 Combat Bots Only 3 | . 3 2 Max Kills in Single Turn 1 | . 1 1 Gunslinging . | . . . Exploded . | . . . Melee 1 | . 1 . Uniques/NPCs Destroyed . | . . . Combat | -11 -10 -9 -------- Run | Yrd Mat Mat Hostile Shots Fired 154 | . 97 57 Missed 40 | . 25 15 Damage Taken 1213 | . 750 463 Core 298 | . 209 89 Absorbed by Shields . | . . . Regen/Repaired (Parts) 17 | . 17 . Core Remaining (%) 58 | 100 16 . Volleys Fired 29 | . 25 4 Largest 2 | . 2 1 Hottest 40 | . 40 35 Shots Fired 44 | . 40 4 Gun 40 | . 40 . Cannon 4 | . . 4 Launcher . | . . . Special . | . . . Kinetic 44 | . 40 4 Thermal . | . . . Explosive . | . . . Electromagnetic . | . . . Robot Hit Streak 6 | . 6 2 Robot Miss Streak 2 | . 2 1 Penetration Max . | . . . Secondary Targets 1 | . 1 . Max Gunslinging Chain 1 | . 1 . Shots Hit Robots 69 | . 53 16 Core Hits 17 | . 16 1 Critical Kills 2 | . 2 . Critical Parts Destroyed 6 | . 5 1 Critical Strikes 9 | . 7 2 Blast 1 | . . 1 Smash 8 | . 7 1 Melee Attacks 51 | . 36 15 Impact 51 | . 36 15 Slashing . | . . . Piercing . | . . . Sneak Attacks . | . . . Combat Hostiles . | . . . Follow-up Attacks . | . . . Damage Inflicted 1193 | . 881 312 Guns 233 | . 233 . Cannons 45 | . . 45 Explosions . | . . . Melee 915 | . 648 267 Ramming . | . . . Kinetic 278 | . 233 45 Thermal . | . . . Explosive . | . . . Electromagnetic . | . . . Impact 915 | . 648 267 Slashing . | . . . Piercing . | . . . Highest Corruption 4 | . 4 . Average Corruption 3 | . 3 . Corruption Purged . | . . . Corruption Blocked . | . . . Effects 20 | . 20 . Matter Fused 8 | . 8 . Heat Flow Errors 2 | . 2 . Energy Discharges 3 | . 3 . Data Loss (minor) 5 | . 5 . Data Loss (major) 1 | . 1 . Misfires 1 | . 1 . Overload Shots . | . . . Overflow Damage 256 | . 208 48 Projectiles . | . . . Explosions . | . . . Melee 256 | . 208 48 Knockbacks 5 | . 4 1 Impact 4 | . 4 . Kinetic 1 | . . 1 Secondary . | . . . Self-Inflicted Damage . | . . . Shots . | . . . Rammed . | . . . Targets Rammed . | . . . Kicked . | . . . Crushed . | . . . Highest Temperature 211 | . 211 . Average Temperature 58 | . 58 . Received Heat Transfer 417 | . 318 99 Siege Activations . | . . . Robots Corrupted . | . . . Combat Hostiles . | . . . Parts Fried 5 | . 3 2 Impact Corruptions 13 | . 10 3 Robots Melted . | . . . Combat Hostiles . | . . . Parts Melted . | . . . Heat Transferred . | . . . Parts Sabotaged . | . . . Parts Stolen . | . . . Parts Stripped . | . . . Power Chain Reactions . | . . . Alert | -11 -10 -9 ------- Run | Yrd Mat Mat Peak Influence 145 | . 145 141 Initial 61 | . . 61 Average 45 | . 43 93 Maximum Alert Level . | . . . Low Security (%) 100 | 100 100 100 Level 1 . | . . . Level 2 . | . . . Level 3 . | . . . Level 4 . | . . . Level 5 . | . . . High Security . | . . . Max Security . | . . . Squads Dispatched 2 | . 2 . Investigation 1 | . 1 . Extermination . | . . . Reinforcement 1 | . 1 . Assault . | . . . Garrison . | . . . Intercept . | . . . Searches Triggered . | . . . Construction Impeded . | . . . Haulers Reinforced . | . . . Active Scanning Responses . | . . . Cargo Convoy Interrupts . | . . . Stealth | -11 -10 -9 --------- Run | Yrd Mat Mat Distress Signals . | . . . Communications Jammed . | . . . Distress Signals . | . . . Times Spotted 28 | . 21 7 Peak Tracking Total 5 | . 4 5 Tactical Retreats 2 | . 1 1 Traps | -11 -10 -9 ------- Run | Yrd Mat Mat Traps Triggered 3 | . 3 . Indirectly . | . . . Trap Hack Attempts . | . . . Triggered . | . . . Disarmed . | . . . Reprogrammed . | . . . Reused . | . . . Traps Extracted . | . . . Installed . | . . . Triggered . | . . . Machines | -11 -10 -9 ---------- Run | Yrd Mat Mat Machines Disabled . | . . . Max in Single Turn . | . . . Machines Repaired . | . . . Machines Dismantled . | . . . Machines Sabotaged . | . . . Overloaded Fab Kills . | . . . Hacking | -11 -10 -9 --------- Run | Yrd Mat Mat Machines Accessed 3 | . 3 . Terminals . | . . . Fabricators . | . . . Repair Stations 1 | . 1 . Recycling Units 2 | . 2 . Scanalyzers . | . . . Garrison Access . | . . . Total Hacks 5 | . 5 . Successful 5 | . 5 . Failed . | . . . Catastrophic . | . . . Database Lockouts . | . . . Manual . | . . . Terminals . | . . . Fabricators . | . . . Repair Stations 2 | . 2 . Recycling Units 3 | . 3 . Scanalyzers . | . . . Garrison Access . | . . . Terminal Hacks . | . . . Fabricator Hacks . | . . . Repair Station Hacks 2 | . 2 . Scan Component 1 | . 1 . Repair 1 | . 1 . Recycling Unit Hacks 3 | . 3 . Report Inventory 2 | . 2 . Retrieve Components 1 | . 1 . Scanalyzer . | . . . Garrison Access Hacks . | . . . Unauthorized Hacks . | . . . Terminals . | . . . Fabricators . | . . . Repair Stations . | . . . Recycling Units . | . . . Scanalyzers . | . . . Garrison Access . | . . . Data Cores Recovered . | . . . Used . | . . . Hacking Detections . | . . . Full Trace Events . | . . . Feedback Events . | . . . Feedback Blocked . | . . . Robot Schematics Acquired . | . . . Robots Built . | . . . Authchips . | . . . Time . | . . . Total Robot Build Rating . | . . . Part Schematics Acquired . | . . . Parts Built . | . . . Authchips . | . . . Time . | . . . Total Part Build Rating . | . . . Parts Repaired 1 | . 1 . Time 26 | . 26 . Parts Recycled . | . . . Recycled Matter . | . . . Retrieved Matter . | . . . Retrieved Components 6 | . 6 . Parts Scanalyzed . | . . . Part Schematics Acquired . | . . . Parts Damaged . | . . . Bothacking | -11 -10 -9 ------------ Run | Yrd Mat Mat Used RIF Installer . | . . . Robots Hacked . | . . . Non-combat . | . . . Combat . | . . . Robot Hacks Applied . | . . . Relay Couplers Released . | . . . Fabnet Peak Effective % . | . . . Robots Rewired . | . . . Allies Hacked . | . . . Hacks Repelled . | . . . Allies | -11 -10 -9 -------- Run | Yrd Mat Mat Total Allies . | . . . Largest Group . | . . . Highest-Rated Group . | . . . Highest-Rated Ally . | . . . Total Orders . | . . . Ally Attacks . | . . . Total Damage . | . . . Kills . | . . . Allies Corrupted . | . . . Allies Melted . | . . . Intel | -11 -10 -9 ------- Run | Yrd Mat Mat Robot Analysis Total . | . . . Derelict Logs Recovered . | . . . Drone Launches . | . . . Drone Recoveries . | . . . Exploration | -11 -10 -9 ------------- Run | Yrd Mat Mat Turns Passed 1638 | 59 1477 102 Spaces Moved 1037 | 50 954 33 Core 17 | 17 . . Treads . | . . . Legs . | . . . Wheels 1020 | 33 954 33 Hover . | . . . Flight . | . . . Fastest Speed 50 | 50 90 115 Average Speed 125 | 89 127 117 Slowest Speed 200 | 200 175 130 Overloaded Moves . | . . . Propulsion Burnouts . | . . . Robots Hopped . | . . . Cave-ins Triggered . | . . . Exploration Rate (%) 35 | 4 98 5 Regions Visited 2 Branch Regions . Pre-discovered Areas . | . . . Known Exits Taken . | . . . Unknown Exits Taken 2 | 1 1 . Scrap Searched . | . . . Spaces Dug . | . . . Terrain Destroyed . | . . . Melee . | . . . Projectile . | . . . AOE . | . . . Terrain Rammed . | . . . Walls Destroyed . | . . . Machines Disabled . | . . . Actions | -11 -10 -9 --------- Run | Yrd Mat Mat Total 1247 | 62 1120 65 Wait 49 | . 48 1 Move 1035 | 49 953 33 Hop . | . . . Pick Up 42 | 7 35 . Fast Attach 5 | 3 2 . Attach 11 | 3 6 2 Detach . | . . . Swap 8 | . 3 5 Drop 17 | . 12 5 Fire 29 | . 25 4 Melee 51 | . 36 15 Ram . | . . . Kick . | . . . Crush . | . . . Escape Stasis . | . . . Rewire . | . . . Trap . | . . . Miscellaneous . | . . . Route ------- -11/Scrapyard -10/Materials (discovered 5 exits: [*Mat x3] / [*Min x2]) -9/Materials History --------- Turn | Location | Event 30 | -11/Scrapyard | Discovered new exit (range 14) 60 | -11/Scrapyard | Entered Materials 301 | -10/Materials | Build established: Mutant 354 | -10/Materials | Discovered new exit (range 9) 486 | -10/Materials | Discovered new exit (range 11) 722 | -10/Materials | Discovered new exit (range 16) 935 | -10/Materials | Core integrity fell below 50% 1034 | -10/Materials | Repaired Com. Wheel 1109 | -10/Materials | Discovered new exit (range 15) 1451 | -10/Materials | Discovered new exit (range 13) 1474 | -10/Materials | Core integrity fell below 20% 1537 | -10/Materials | Entered another Materials area 1537 | -9/Materials | Evolved 2 slots: Propulsion x1, Utility x1 1639 | -9/Materials | Self-destructed Last Messages --------------- into recycling unit. 01620_ R-06 Scavenger inserts Ion Engine into recycling unit. 01621_ Acquired 3 matter. 01621_ K-01 Serf collects debris. 01623_ Critical hit (Burn: +37). 01623_ R-06 Scavenger inserts Lrg. Storage Unit into recycling unit. 01625_ Y-45 Defender suffers critical hit (Smash). 01625_ Destroyed Lgt. Treads. 01625_ Y-45 Defender system corrupted by crushing effect. 01626_ K-01 Serf collects debris. 01626_ Ion Engine destroyed. 01628_ R-06 Scavenger collects Flight Unit. 01629_ Lgt. Cannon destroyed. 01630_ K-01 Serf collects debris. 01635_ Com. Wheel destroyed. 01638_ Imp. Heat Sink destroyed. Map ----- +----------------------------------------------------+ | ?????????????????????????????????????????????????? | | ?????????????????????????????????????????????????? | | ?????????????????????????????????????????????????? | | ?????????????????????????????????????????????????? | | ?????????????????????????????????????????????????? | | ?????????????????????????????????????????????????? | | ?????????????????????????????????????????????????? | | ?????????????????????????????????????????????????? | | ?????????????????????????????????????????????????? | | ?????????????????????????? ????????????????????? | | ????????????????????????? ????????????????????? | | ????????????????????????? ??###########???????? | | ?????????????????????????? ??# #???????? | | ?????????????????????????? % ?# #???????? | | ??????????????????????????#%" ?# #???????? | | ??????????????????????????#" ?# #???????? | | ??????????????????????????#=% ?# #???????? | | ??????????????????????????# * ?# #???????? | | ??????????????????######### ?# #???????? | | ????????????????? ?# #???????? | | ?????????????????? #######+####???????? | | ??????????????????? ! #???????? | | ??????????????????????????# =*=#???????? | | ??????????????????????????# ! #???????? | | ???????????????????????#######+###########???????? | | ???????????????????????#Y@ #???????????? | | ???????????????????????# [k% ""#???????????? | | ???????????????????????# """ " " Y"#???????????? | | ???????????????????????# """ """ ""#???????????? | | ???????????????????????# """ """ #???????????? | | ???????????????????????# #???????????? | | ???????????????????????###############???????????? | | ?????????????????????????????????????????????????? | | ?????????????????????????????????????????????????? | | ?????????????????????????????????????????????????? | | ?????????????????????????????????????????????????? | | ?????????????????????????????????????????????????? | | ?????????????????????????????????????????????????? | | ?????????????????????????????????????????????????? | | ?????????????????????????????????????????????????? | | ?????????????????????????????????????????????????? | | ?????????????????????????????????????????????????? | | ?????????????????????????????????????????????????? | | ?????????????????????????????????????????????????? | | ?????????????????????????????????????????????????? | | ?????????????????????????????????????????????????? | | ?????????????????????????????????????????????????? | | ?????????????????????????????????????????????????? | | ?????????????????????????????????????????????????? | | ?????????????????????????????????????????????????? | +----------------------------------------------------+ Best States ------------- Heat Dissipation 42 Energy Generation 10 Energy Capacity 250 Matter Stores 300 Matter Capacity 300 Sight Range 16 Terrain Scan Density 10 Evasion (%) 42 Item Schematics ----------------- None Robot Schematics ------------------ None Fabricated ------------ Nothing Alien Tech Used ----------------- None Achievements -------------- None Challenges ------------ None Game ------ Seed IntegratedNetworkShearcannon Manual? 0 Play Time 00:16:10 Cumulative 12.8 hours Start 2024.04.15 @ 23:06:06 End 2024.04.15 @ 23:20:48 Sessions 1 Manual Loads 0 Difficulty Rogue Special Mode None Game No. 14 Rogue 14 Adventurer 0 Explorer 0 Win Type - Total 0 Types 0/0/0/0/0/0/0/0/0 Lore% 4 Gallery% 15 Achievement% 17 Wizard Run 0 Options --------- Layout 1 ASCII 0 Keyboard 0 Movement Arrows Keybinds 0 Fullscreen 2 Font 32/SmallcapsGlow Map View 50x35 Zoom Use 0% Tactical HUD 1 Map Filters NONE Filters NONE Steam 1 RUN: 1a52b3e9-92bc-441f-9416-44f92d0cf838